Cogmind - Beta 13 @@@ ROGUE MODE // 2024.04.08 @ 22:03:59 Player: Scuf Result: Destroyed by S-10 Pest with Light Assault Rifle Performance ------------- Evolutions (0) 0 Regions Visited (1) 200 Robots Destroyed (15) 75 Value Destroyed (358) 358 Prototype IDs (2) 40 Alien Tech Used (0) 0 Bonus (0) 0 TOTAL SCORE: 673 Bonus ------- None Cogmind --------- Core Integrity 0/250 Matter 249/300 Energy 247/250 System Corruption 0% Temperature Cool (0) Movement Core (100) Ox1 Location -10/Materials Parts ------- > --- POWER (1) -------- (None) > --- PROPULSION (2) --- (None) > --- UTILITY (2) ------ Heat Sink Medium Battery > --- WEAPON (2) ------- Assault Rifle > --- INVENTORY (5) ---- Structural Scanner Terrain Scan Processor Light Armor Plating Grenade Launcher Welding Torch Peak State ------------ > --- POWER ------------ Light Ion Engine > --- PROPULSION ------- Wheel Wheel > --- UTILITY ---------- Medium Battery Terrain Scanner > --- WEAPON ----------- Medium Laser Grenade Launcher > --- INVENTORY -------- Ion Engine Heat Sink Structural Scanner Terrain Scan Processor [Rating: 7] Favorites ----------- Power Ion Engine Engine Ion Engine Propulsion Wheel Wheel Wheel Hover Unit Hover Unit Utility Medium Battery Device Heat Sink Storage Medium Battery Weapon Medium Laser Energy Gun Medium Laser Ballistic Gun Assault Rifle Launcher Grenade Launcher Build | -11 -10 ------- Run | Yrd Mat Slots Evolved . | . . Power . | . . Propulsion . | . . Utility . | . . Weapon . | . . Parts Attached 17 | 5 12 Power 3 | 1 2 Engine 3 | 1 2 Core . | . . Reactor . | . . Propulsion 4 | 2 2 Treads . | . . Leg . | . . Wheel 3 | 2 1 Hover 1 | . 1 Flight . | . . Utility 3 | . 3 Device 2 | . 2 Storage 1 | . 1 Processor . | . . Hackware . | . . Protection . | . . Artifact . | . . Weapon 7 | 2 5 Energy Gun 3 | 1 2 Energy Cannon . | . . Ballistic Gun 2 | 1 1 Ballistic Cannon . | . . Launcher 2 | . 2 Special Weapon . | . . Impact Weapon . | . . Slashing Weapon . | . . Piercing Weapon . | . . Special Melee Weapon . | . . Unidentified Prototypes . | . . Parts Lost 10 | . 10 Power 3 | . 3 Propulsion 4 | . 4 Utility . | . . Weapon 3 | . 3 Highest Loss Streak 4 | . 4 To Critical Strikes . | . . Average Slot Usage (%) 72 | . 72 Engine 10 | . 10 Wheel 8 | . 8 Hover 2 | . 2 Device 10 | . 10 Storage 11 | . 11 Energy Gun 21 | . 21 Ballistic Gun 4 | . 4 Launcher 1 | . 1 Naked Turns . | . . Heaviest Build 11 | 7 11 Greatest Support 20 | 20 20 Greatest Overweight (x) 3 | . 3 Average Overweight (x) 1 | . 1 Largest Inventory Capacity 5 | 5 5 Average Capacity 5 | 5 5 Most Carried 5 | 3 5 Average Carried 3 | 1 3 Final Capacity 5 | 5 5 Final Carried 5 | 1 5 Class Distribution -------------------- 100% | Mutant Dominant Class ---------------- Mutant | -10/Materials Resources | -11 -10 ----------- Run | Yrd Mat Matter Collected 399 | 253 146 Remotely . | . . Salvage Created 388 | 41 347 Parts 23 | 2 21 Haulers Intercepted . | . . Recyclers Shooed . | . . Parts Field Recycled . | . . Retrieved Matter . | . . Parts Self-Destructed . | . . Prevented . | . . Kills | -11 -10 ------- Run | Yrd Mat Combat Hostiles Destroyed 12 | 1 11 Guns 7 | 1 6 AOE 5 | . 5 Classes Destroyed 4 | 1 3 Worker 1 | . 1 Watcher 2 | . 2 Swarmer 4 | . 4 Grunt 8 | 1 7 Best Kill Streak 5 | 1 5 Combat Bots Only 4 | 1 4 Max Kills in Single Turn 3 | 1 3 Gunslinging . | . . Exploded 3 | . 3 Melee . | . . Uniques/NPCs Destroyed . | . . Combat | -11 -10 -------- Run | Yrd Mat Hostile Shots Fired 112 | 1 111 Missed 27 | . 27 Damage Taken 969 | 12 957 Core 254 | 12 242 Absorbed by Shields . | . . Core Remaining (%) 95 | 95 . Volleys Fired 50 | 1 49 Largest 2 | 2 2 Hottest 90 | 60 90 Shots Fired 89 | 2 87 Gun 86 | 2 84 Cannon . | . . Launcher 3 | . 3 Special . | . . Kinetic 30 | 1 29 Thermal 37 | . 37 Explosive 3 | . 3 Electromagnetic 19 | 1 18 Robot Hit Streak 7 | 2 7 Robot Miss Streak 4 | . 4 Penetration Max . | . . Secondary Targets 1 | . 1 Max Gunslinging Chain 1 | . 1 Shots Hit Robots 49 | 2 47 Core Hits 24 | 2 22 Critical Kills . | . . Critical Parts Destroyed . | . . Critical Strikes 2 | . 2 Burn 1 | . 1 Corrupt 1 | . 1 Melee Attacks . | . . Impact . | . . Slashing . | . . Piercing . | . . Sneak Attacks . | . . Combat Hostiles . | . . Follow-up Attacks . | . . Damage Inflicted 1018 | 25 993 Guns 596 | 25 571 Cannons . | . . Explosions 422 | . 422 Melee . | . . Ramming . | . . Kinetic 178 | 13 165 Thermal 312 | . 312 Explosive 395 | . 395 Electromagnetic 133 | 12 121 Impact . | . . Slashing . | . . Piercing . | . . Highest Corruption . | . . Average Corruption . | . . Corruption Purged . | . . Corruption Blocked . | . . Overload Shots . | . . Overflow Damage 56 | . 56 Projectiles . | . . Explosions 56 | . 56 Melee . | . . Knockbacks . | . . Impact . | . . Kinetic . | . . Secondary . | . . Self-Inflicted Damage 5 | . 5 Shots 1 | . 1 Rammed . | . . Targets Rammed . | . . Kicked . | . . Crushed . | . . Highest Temperature 321 | 6 321 Average Temperature 106 | 6 109 Received Heat Transfer 372 | 6 366 Siege Activations . | . . Robots Corrupted . | . . Combat Hostiles . | . . Parts Fried . | . . Impact Corruptions . | . . Robots Melted . | . . Combat Hostiles . | . . Parts Melted 3 | . 3 Heat Transferred 905 | . 905 Parts Sabotaged . | . . Parts Stolen . | . . Parts Stripped . | . . Power Chain Reactions 1 | . 1 Alert | -11 -10 ------- Run | Yrd Mat Peak Influence 209 | 20 209 Initial 13 | . 13 Average 77 | 7 86 Maximum Alert Level 1 | . 1 Low Security (%) 88 | 100 86 Level 1 11 | . 13 Level 2 . | . . Level 3 . | . . Level 4 . | . . Level 5 . | . . High Security . | . . Max Security . | . . Squads Dispatched 2 | . 2 Investigation 2 | . 2 Extermination . | . . Reinforcement . | . . Assault . | . . Garrison . | . . Intercept . | . . Searches Triggered . | . . Construction Impeded . | . . Haulers Reinforced . | . . Active Scanning Responses . | . . Cargo Convoy Interrupts . | . . Stealth | -11 -10 --------- Run | Yrd Mat Distress Signals . | . . Communications Jammed . | . . Distress Signals . | . . Times Spotted 18 | 1 17 Peak Tracking Total 5 | 1 5 Tactical Retreats 1 | . 1 Traps | -11 -10 ------- Run | Yrd Mat Traps Triggered 1 | . 1 Indirectly . | . . Trap Hack Attempts . | . . Triggered . | . . Disarmed . | . . Reprogrammed . | . . Reused . | . . Traps Extracted . | . . Installed . | . . Triggered 1 | . 1 Machines | -11 -10 ---------- Run | Yrd Mat Machines Disabled . | . . Max in Single Turn . | . . Machines Repaired . | . . Machines Dismantled . | . . Machines Sabotaged . | . . Overloaded Fab Kills . | . . Hacking | -11 -10 --------- Run | Yrd Mat Machines Accessed 3 | . 3 Terminals 3 | . 3 Fabricators . | . . Repair Stations . | . . Recycling Units . | . . Scanalyzers . | . . Garrison Access . | . . Total Hacks 6 | . 6 Successful 5 | . 5 Failed 1 | . 1 Catastrophic . | . . Database Lockouts . | . . Manual . | . . Terminals 6 | . 6 Fabricators . | . . Repair Stations . | . . Recycling Units . | . . Scanalyzers . | . . Garrison Access . | . . Terminal Hacks 5 | . 5 Record 2 | . 2 Prototype ID Bank 1 | . 1 Alert Level 1 | . 1 Transport Status 1 | . 1 Fabricator Hacks . | . . Repair Station Hacks . | . . Recycling Unit Hacks . | . . Scanalyzer . | . . Garrison Access Hacks . | . . Unauthorized Hacks . | . . Terminals . | . . Fabricators . | . . Repair Stations . | . . Recycling Units . | . . Scanalyzers . | . . Garrison Access . | . . Data Cores Recovered . | . . Used . | . . Hacking Detections 2 | . 2 Full Trace Events 1 | . 1 Feedback Events . | . . Feedback Blocked . | . . Robot Schematics Acquired . | . . Robots Built . | . . Authchips . | . . Time . | . . Total Robot Build Rating . | . . Part Schematics Acquired . | . . Parts Built . | . . Authchips . | . . Time . | . . Total Part Build Rating . | . . Parts Repaired . | . . Time . | . . Parts Recycled . | . . Recycled Matter . | . . Retrieved Matter . | . . Retrieved Components . | . . Parts Scanalyzed . | . . Part Schematics Acquired . | . . Parts Damaged . | . . Bothacking | -11 -10 ------------ Run | Yrd Mat Used RIF Installer . | . . Robots Hacked . | . . Non-combat . | . . Combat . | . . Robot Hacks Applied . | . . Relay Couplers Released . | . . Fabnet Peak Effective % . | . . Robots Rewired . | . . Allies Hacked . | . . Hacks Repelled . | . . Allies | -11 -10 -------- Run | Yrd Mat Total Allies . | . . Largest Group . | . . Highest-Rated Group . | . . Highest-Rated Ally . | . . Total Orders . | . . Ally Attacks . | . . Total Damage . | . . Kills . | . . Allies Corrupted . | . . Allies Melted . | . . Intel | -11 -10 ------- Run | Yrd Mat Robot Analysis Total . | . . Derelict Logs Recovered . | . . Drone Launches . | . . Drone Recoveries . | . . Exploration | -11 -10 ------------- Run | Yrd Mat Turns Passed 751 | 82 669 Spaces Moved 478 | 92 386 Core 149 | 19 130 Treads . | . . Legs . | . . Wheels 211 | 73 138 Hover 118 | . 118 Flight . | . . Fastest Speed 50 | 50 60 Average Speed 119 | 73 130 Slowest Speed 200 | 80 200 Overloaded Moves . | . . Propulsion Burnouts . | . . Robots Hopped . | . . Cave-ins Triggered . | . . Exploration Rate (%) 33 | 9 58 Regions Visited 1 Branch Regions . Pre-discovered Areas . | . . Known Exits Taken . | . . Unknown Exits Taken 1 | 1 . Scrap Searched . | . . Spaces Dug . | . . Terrain Destroyed 25 | . 25 Melee . | . . Projectile . | . . AOE 25 | . 25 Terrain Rammed . | . . Walls Destroyed . | . . Machines Disabled . | . . Actions | -11 -10 --------- Run | Yrd Mat Total 569 | 103 466 Wait . | . . Move 477 | 91 386 Hop . | . . Pick Up 21 | 6 15 Fast Attach . | . . Attach 14 | 5 9 Detach 1 | . 1 Swap 3 | . 3 Drop 3 | . 3 Fire 50 | 1 49 Melee . | . . Ram . | . . Kick . | . . Crush . | . . Escape Stasis . | . . Rewire . | . . Trap . | . . Miscellaneous . | . . Route ------- -11/Scrapyard -10/Materials (discovered 1 exit: [*Mat]) History --------- Turn | Location | Event 2 | -11/Scrapyard | Met Revision 17 47 | -11/Scrapyard | Discovered new exit (range 8) 83 | -11/Scrapyard | Entered Materials 239 | -10/Materials | Lost 4 parts (1p1n2w) 248 | -10/Materials | Discovered new exit (range 14) 292 | -10/Materials | Core integrity fell below 50% 324 | -10/Materials | Build established: Mutant 334 | -10/Materials | Lost 3 parts (1p2n) 742 | -10/Materials | Core integrity fell below 20% 752 | -10/Materials | Destroyed by S-10 Pest with Light Assault Rifle Last Messages --------------- >>Enumerate(Transport) Retrieving latest reported positions... Found 2 active transport squads. Downloaded coordinate data. Acquired Lgt. Armor Plating. T-07 Excavator is excavating. Flight Unit melted. S-10 Pest destroyed. Switching to secondary target: S-10 Pest. Med. Laser destroyed. K-01 Serf collects debris. Hover Unit destroyed. Destroyed Flight Unit. Destroyed Lgt. Ion Engine. Destroyed Flight Unit. K-01 Serf destroyed. S-10 Pest destroyed. When the line of fire is red, you are attempting to shoot through an object at another target, which incurs significant penalties. Map ----- +----------------------------------------------------+ | ??????????????########?# """ # [ | | ??????????????# #?# """ # | | ?????????#????# #?# """ + | | ?????????# ???# #?########## ## | | ?????????# ??# #??# T # # | | ?????????# ???? #??# + # | | ???????#?# ????? #??# # # | | ???????# # ##+####+############ # | | ???????# ########## / | | ?????????# / ## # | | ?????????# # ## ## | | ?????????######+#### # """ ## #? | | ???????????# ## # """ ## #? | | ???????????# """ ## # """ ## ## | | ???????????# """ ## + """ + | | ???????????# """ ## # """ ### # | | ???????????# ## # ### # | | ???######### ## # # | | ???# ! ####+##### # # | | ???# #### ##### # # | | ???# ! + ######### | | ???# ##############???????# | | ???# ### #??????????## | | ???# + + """#???????????# | | ???######## # """#?????????? + | | ??????????#@#?? """#????????? # | | ??????????#t#???? #???????? # | | ??????????# #??????##???????###?# | | ??????????# #???????????????????# % | | ?????????? ???????????????????# | | ?????????? ???????????????????# | | ?????????? =???????????????????# % | | ?????????? ????????????######## | | ?????????? ????????????# # | | ?????????? %????????????# """ # | | ?????????=*=s[???????????# """ # | | ????????? ???????????# """ # | | ????????? ???????????# # | | ?????????#s ???????????# """ # | | ?????????? ^^ ???????????# """ + | | ?????????? ???????????# """ # | | ?????????????????????????# # | | ?????????????????????????# """ # | | ?????????????????????????# """ # | | ?????????????????????????# """ # | | ?????????????????????????# # | | ?????????????????????????######## | | ????????????????????????????????# | | ?????????????????????????????#### | | ?????????????????????????????# | +----------------------------------------------------+ Best States ------------- Heat Dissipation 35 Energy Generation 10 Energy Capacity 400 Matter Stores 300 Matter Capacity 300 Sight Range 16 Terrain Scan Range 14 Terrain Scan Density 10 Evasion (%) 53 Item Schematics ----------------- None Robot Schematics ------------------ None Fabricated ------------ Nothing Alien Tech Used ----------------- None Achievements -------------- None Challenges ------------ None Game ------ Seed CompositeMetafieldTerminator Manual? 0 Play Time 00:18:27 Cumulative 2.4 hours Start 2024.04.08 @ 19:47:12 End 2024.04.08 @ 22:03:59 Sessions 2 Manual Loads 0 Difficulty Rogue Special Mode None Game No. 2 Rogue 2 Adventurer 0 Explorer 0 Win Type - Total 0 Types 0/0/0/0/0/0/0/0/0 Lore% 1 Gallery% 4 Achievement% 5 Wizard Run 0 Options --------- Layout 1 ASCII 0 Keyboard 0 Movement Mouse Keybinds 0 Fullscreen 1 Font 24/Smallcaps Map View 50x35 Zoom Use 0% Tactical HUD 0 Map Filters NONE Filters NONE Steam 1 RUN: bc80a4b6-2211-4277-bcda-7a95b78e55c2